bitfinex/quotes_BTCUSD_20260311
["timestamp","ask_amount","ask_price","bid_price","bid_amount"]
[1773235753826,0.00144,70223.0,70208.0,0.11705244]
[1773235754026,0.00144,70223.0,70208.0,0.11697744]
[1773235754429,0.07119971,70225.0,70208.0,0.11697744]
[1773235754650,0.00144,70223.0,70208.0,0.11697744]
[1773235754830,0.00144,70223.0,70210.0,0.11649886]
[1773235755230,0.07119899,70226.0,70210.0,0.11649886]
[1773235755433,0.00144,70225.0,70210.0,0.11649886]
[1773235756836,0.00144,70224.0,70211.0,0.07121391]
[1773235757605,0.00166001,70224.0,70211.0,0.07121391]
[1773235757811,0.14278673,70223.0,70211.0,0.07121391]
[1773235759935,0.2139887,70223.0,70211.0,0.07121391]
[1773235760455,0.07120197,70223.0,70211.0,0.07121391]
[1773235760660,0.13780265,70222.0,70211.0,0.07121391]
[1773235761676,0.00166001,70224.0,70211.0,0.07121391]
[1773235761877,0.00022001,70224.0,70211.0,0.07121391]
[1773235762044,0.00166001,70224.0,70211.0,0.07121391]
[1773235762248,0.00022001,70224.0,70211.0,0.07121391]
[1773235762450,0.00022001,70235.0,70212.0,0.11604228]
[1773235763056,0.00022001,70235.0,70214.0,0.11436966]
[1773235764274,0.00022001,70235.0,70214.0,0.11536966]
[1773235765098,0.00022001,70235.0,70216.0,0.1139005]
[1773235765624,0.00022001,70238.0,70216.0,0.1139005]
[1773235765849,0.01146001,70244.0,70216.0,0.1139005]
[1773235766029,0.0002411,70255.0,70231.0,0.1136667]
[1773235766177,0.13780265,70252.0,70215.0,0.07120985]
[1773235766387,0.13780265,70250.0,70216.0,0.1151067]
[1773235766831,0.00144,70249.0,70216.0,0.1151067]
[1773235767029,0.07117741,70247.0,70217.0,0.07120782]
[1773235767228,0.38045029,70251.0,70217.0,0.07120782]
[1773235767229,0.0002411,70255.0,70232.0,0.11351855]
[1773235767427,0.07139158,70253.0,70234.0,0.11351855]
[1773235767797,0.00022001,70253.0,70234.0,0.11351855]
[1773235768989,0.00022001,70253.0,70234.0,0.11451855]
[1773235769273,0.00022001,70253.0,70236.0,0.11305313]
[1773235771440,0.00022001,70253.0,70237.0,0.07118755]
[1773235771642,0.13802266,70253.0,70237.0,0.07118755]
[1773235771838,0.07139211,70253.0,70237.0,0.07118755]
[1773235772040,0.13780265,70252.0,70237.0,0.07118755]
[1773235772249,0.07139211,70253.0,70213.0,0.11235889]
[1773235772250,0.00144,70251.0,70213.0,0.11235889]
[1773235772450,0.13780265,70250.0,70215.0,0.11235889]
[1773235772652,0.13780265,70250.0,70217.0,0.11235889]
[1773235773497,0.13780265,70248.0,70219.0,0.11212851]
[1773235775026,0.13780265,70248.0,70221.0,0.11166929]
[1773235775505,0.07117741,70247.0,70222.0,0.07120275]
[1773235775718,0.13780265,70246.0,70223.0,0.11166929]
[1773235776062,0.13780265,70246.0,70224.0,0.00144]
[1773235776462,0.13780265,70246.0,70225.0,0.00144]
[1773235776864,0.13780265,70246.0,70223.0,0.00144]
[1773235777921,0.13780265,70246.0,70224.0,0.07120072]
[1773235777922,0.13780265,70244.0,70224.0,0.07120072]
[1773235778317,0.13780265,70244.0,70224.0,0.18218503]
[1773235778686,0.13780265,70242.0,70225.0,0.11098431]
[1773235780350,0.07239932,70246.0,70227.0,0.11053527]
[1773235780557,0.00144,70245.0,70227.0,0.11053527]
[1773235780708,0.07139887,70246.0,70227.0,0.11053527]
[1773235781029,0.00022001,70246.0,70227.0,0.11053527]
[1773235781406,0.12833816,70245.0,70227.0,0.11053527]
[1773235782723,0.12833816,70245.0,70228.0,0.18127975]
[1773235782923,0.12833816,70245.0,70229.0,0.00144]
[1773235783184,0.12833816,70245.0,70229.0,0.11129775]
[1773235783657,0.12833816,70244.0,70229.0,0.00144]
[1773235784281,0.12833816,70244.0,70230.0,0.00144]
[1773235784444,0.12833816,70244.0,70227.0,0.07263724]
[1773235784640,0.07118147,70243.0,70227.0,0.07263724]
[1773235784839,0.12833816,70242.0,70227.0,0.07263724]
[1773235785711,0.12833816,70240.0,70227.0,0.07263724]
[1773235786718,0.07118552,70239.0,70211.0,0.07121391]
[1773235786894,0.12833816,70238.0,70215.0,0.00144]
[1773235787090,0.12833816,70238.0,70216.0,0.10896147]
[1773235787475,0.12833816,70238.0,70229.0,0.0002]
[1773235787798,0.12833816,70238.0,70211.0,0.07121391]
[1773235787799,0.12833816,70238.0,70221.0,0.0002]
[1773235787994,0.12833816,70238.0,70214.0,0.0012]
[1773235788202,0.12833816,70238.0,70215.0,0.00144]
[1773235788539,0.12833816,70238.0,70216.0,0.00144]
[1773235789047,0.12833816,70236.0,70217.0,0.07120782]
[1773235789174,0.00144,70235.0,70217.0,0.07120782]
[1773235789367,0.12833816,70234.0,70217.0,0.07120782]
[1773235789796,0.00144,70233.0,70218.0,0.12736487]
[1773235789999,0.13200926,70232.0,70218.0,0.12736487]
[1773235790992,0.07119363,70231.0,70219.0,0.07120579]
[1773235791212,0.07263363,70231.0,70219.0,0.07120579]
[1773235791587,0.20464289,70231.0,70219.0,0.07120579]
[1773235791787,0.13200926,70230.0,70219.0,0.07120579]
[1773235793111,0.13200926,70230.0,70218.0,0.07120579]
[1773235793312,0.0711925,70234.0,70218.0,0.19857066]
[1773235793513,0.13344926,70233.0,70218.0,0.19857066]
[1773235793770,0.13344926,70233.0,70219.0,0.00144]
[1773235795131,0.13200926,70233.0,70220.0,0.07120478]
[1773235795343,0.07117974,70245.0,70220.0,0.07120478]
[1773235795672,0.13200926,70244.0,70221.0,0.12736487]
[1773235795818,0.13344926,70244.0,70221.0,0.12736487]
[1773235796016,0.07117974,70245.0,70221.0,0.12736487]
[1773235796221,0.00022001,70246.0,70221.0,0.12736487]
[1773235796847,0.001,70244.0,70221.0,0.12736487]
[1773235797175,0.00022001,70246.0,70222.0,0.07120275]
[1773235797383,0.00022001,70246.0,70223.0,0.12736487]
[1773235798063,0.00022001,70246.0,70223.0,0.12721487]
[1773235798468,0.00022001,70246.0,70223.0,0.12713987]
[1773235798679,0.00022001,70246.0,70223.0,0.12698987]
[1773235798877,0.00022001,70246.0,70223.0,0.12691487]
[1773235799087,0.00022001,70246.0,70223.0,0.12683987]
[1773235799284,0.00022001,70246.0,70225.0,0.12736487]
[1773235799490,0.00022001,70246.0,70227.0,0.12728987]
[1773235799690,0.00022001,70246.0,70227.0,0.12721487]
[1773235799889,0.00022001,70246.0,70227.0,0.12713987]
[1773235800091,0.00022001,70246.0,70227.0,0.12706487]
[1773235800323,0.071386,70259.0,70240.0,0.12778001]
[1773235800324,0.00022001,70257.0,70240.0,0.12778001]
[1773235800528,0.00022001,70257.0,70241.0,0.12872987]
[1773235800731,1e-08,70261.0,70241.0,0.12865487]
[1773235800977,0.00144,70286.0,70241.0,0.12850487]
[1773235801152,1e-08,70268.0,70251.0,0.12728987]
[1773235801467,1e-08,70268.0,70253.0,0.12721487]
[1773235801703,1e-08,70268.0,70253.0,0.12713987]
[1773235801917,0.13200926,70267.0,70236.0,0.07118856]
[1773235802121,1e-08,70268.0,70250.0,0.12778001]
[1773235802333,0.071145,70280.0,70251.0,0.12880487]
[1773235802544,0.0711445,70280.0,70251.0,0.12880487]
[1773235802983,0.0711445,70280.0,70261.0,0.12736487]
[1773235803251,0.07113987,70285.0,70263.0,0.12736487]
[1773235803467,0.07112889,70295.0,70271.0,0.12736487]
[1773235803702,0.0002403,70297.0,70273.0,0.12736487]
[1773235804120,0.01096337,70302.0,70281.0,0.12736487]
[1773235804352,0.01096337,70302.0,70290.0,0.12778001]
[1773235804595,0.01096337,70302.0,70291.0,0.12780487]
[1773235804825,0.01096337,70302.0,70280.0,0.12778001]
[1773235804826,0.01096337,70302.0,70292.0,0.00144]
[1773235805014,0.01096337,70302.0,70280.0,0.12778001]
[1773235805015,0.0002403,70310.0,70294.0,0.12736487]
[1773235805221,0.0002403,70310.0,70296.0,0.12736487]
[1773235805392,0.34120492,70339.0,70301.0,0.12736487]
[1773235805393,0.13344926,70330.0,70301.0,0.12736487]
[1773235805565,0.13344926,70330.0,70302.0,0.00144]
[1773235805975,0.12922001,70330.0,70280.0,0.12778001]
[1773235806176,0.12922001,70330.0,70258.0,0.0004437]
[1773235806177,0.13200926,70308.0,70272.0,0.21339706]
[1773235806374,0.30917608,70309.0,70259.0,0.07116525]
[1773235806375,0.13200926,70299.0,70259.0,0.07116525]
[1773235806625,0.13200926,70299.0,70258.0,0.07160895]
[1773235806626,0.13200926,70289.0,70258.0,0.0004437]
[1773235806774,0.13200926,70289.0,70251.0,0.11622942]
[1773235806775,0.13200926,70287.0,70251.0,0.18740212]
[1773235806982,0.13200926,70287.0,70252.0,0.00144]
[1773235807180,0.13200926,70287.0,70251.0,0.11622942]
[1773235807181,0.07113994,70284.0,70251.0,0.11622942]
[1773235807380,0.13200926,70283.0,70251.0,0.11622942]
[1773235807602,0.13200926,70279.0,70251.0,0.18740231]
[1773235807799,0.13200926,70279.0,70251.0,0.11622942]
[1773235808000,0.13200926,70277.0,70251.0,0.11622942]
[1773235808205,0.13200926,70277.0,70251.0,0.18740261]
[1773235808384,0.00144,70276.0,70251.0,0.31476748]
[1773235808607,0.00144,70276.0,70252.0,0.12736487]
[1773235808982,0.13200926,70275.0,70252.0,0.12736487]
[1773235809184,0.07115006,70274.0,70251.0,0.11622942]
[1773235809386,0.13200926,70273.0,70243.0,0.0711806]
[1773235809625,0.13200926,70273.0,70244.0,0.08385981]
[1773235809847,0.13200926,70273.0,70244.0,0.01124]
[1773235810007,0.13200926,70269.0,70237.0,0.07156483]
[1773235810412,0.00144,70268.0,70237.0,0.07156483]
[1773235810611,0.13344926,70267.0,70238.0,0.12736487]
[1773235810894,0.07315006,70274.0,70241.0,0.12736487]
[1773235810895,0.00144,70268.0,70241.0,0.12736487]
[1773235811112,0.00244,70269.0,70241.0,0.12736487]
[1773235811315,0.00144,70269.0,70242.0,0.07118248]
[1773235811511,0.44118534,70288.0,70251.0,0.12736487]
[1773235811715,0.30917608,70288.0,70260.0,0.12736487]
[1773235811917,0.01124,70301.0,70271.0,0.12736487]
[1773235812119,0.01124,70301.0,70273.0,0.12736487]
[1773235812937,0.13200926,70300.0,70274.0,0.00144]
[1773235813137,0.13200926,70300.0,70274.0,0.12880487]
[1773235813339,0.01124,70301.0,70276.0,0.12736487]
[1773235814776,0.13200926,70326.0,70290.0,0.12778001]
[1773235814994,0.07109847,70325.0,70291.0,0.12880487]
[1773235815203,0.13200926,70324.0,70291.0,0.12880487]
[1773235815409,0.07110049,70323.0,70293.0,0.12736487]
[1773235815840,0.07110049,70323.0,70292.0,0.07113184]
[1773235815841,0.07109442,70329.0,70301.0,0.12736487]
[1773235816068,0.13200926,70328.0,70293.0,0.12736487]
[1773235816512,0.13200926,70328.0,70293.0,0.12880487]
[1773235816719,0.13200926,70328.0,70293.0,0.00144]
[1773235816930,0.13200926,70328.0,70287.0,0.07113619]
[1773235817178,0.13200926,70328.0,70293.0,0.001]
[1773235817562,0.13200926,70325.0,70294.0,0.07112982]
[1773235817919,0.00022001,70302.0,70294.0,0.07112982]
[1773235818144,0.00022001,70302.0,70287.0,0.07113619]
[1773235818145,0.13344926,70301.0,70262.0,0.12736487]
[1773235818377,0.13344926,70301.0,70261.0,0.07264323]
[1773235818378,0.13200926,70299.0,70261.0,0.07264323]
[1773235818599,0.13200926,70299.0,70262.0,0.00148]
[1773235819150,0.00022001,70302.0,70270.0,0.12778001]
[1773235819348,0.00022001,70302.0,70271.0,0.12884487]
[1773235819554,0.00022001,70302.0,70281.0,0.12736487]
[1773235819766,0.00022001,70310.0,70283.0,0.12766074]
[1773235820196,0.00022001,70317.0,70291.0,0.12766074]
[1773235820408,0.30955378,70331.0,70300.0,0.12778001]
[1773235820634,0.38064649,70331.0,70301.0,0.12914074]
[1773235820875,0.07131378,70330.0,70301.0,0.12914074]
[1773235821314,0.00022001,70330.0,70301.0,0.12914074]
[1773235821523,1e-08,70338.0,70321.0,0.12766074]
[1773235821710,1e-08,70338.0,70323.0,0.12766074]
[1773235822321,0.0003777,70352.0,70322.0,0.17760406]
[1773235822322,0.08230591,70358.0,70330.0,0.12778001]
[1773235822523,0.08230591,70358.0,70312.0,0.07111161]
[1773235822524,0.08230591,70358.0,70326.0,0.00148]
[1773235822727,0.01124,70358.0,70330.0,0.12778001]
[1773235822882,0.01124,70358.0,70331.0,0.12914074]
[1773235823086,0.01124,70358.0,70340.0,0.12778001]
[1773235823291,0.00012,70363.0,70341.0,0.00148]
[1773235823508,0.10188558,70369.0,70343.0,0.07108027]
[1773235823709,0.1018855,70369.0,70344.0,0.12766074]
[1773235824152,0.1018855,70369.0,70343.0,0.07108027]
[1773235824350,0.1018855,70369.0,70342.0,0.07108027]
[1773235824351,0.13334415,70368.0,70342.0,0.00148]
[1773235824528,0.13334415,70368.0,70325.0,0.07109847]
[1773235824751,0.13334415,70368.0,70326.0,0.00148]
[1773235824961,0.13334415,70366.0,70326.0,0.12914074]
[1773235825135,0.13334415,70366.0,70327.0,0.00148]
[1773235825651,0.13334415,70363.0,70328.0,0.07109543]
[1773235825850,0.00148,70362.0,70329.0,0.12766074]
[1773235826058,0.00148,70362.0,70314.0,0.07110959]
[1773235826059,0.12736487,70350.0,70314.0,0.07110959]
[1773235826257,0.13356416,70338.0,70310.0,0.00148]
[1773235826594,0.13356416,70338.0,70302.0,0.07112173]
[1773235826595,0.13334415,70336.0,70311.0,0.00148]
[1773235826787,0.13334415,70336.0,70302.0,0.07112173]
[1773235826977,0.13334415,70336.0,70306.0,0.00148]
[1773235827279,0.13334415,70336.0,70301.0,0.01124]
[1773235827478,0.00148,70337.0,70301.0,0.08236227]
[1773235827479,0.07109543,70328.0,70301.0,0.08236227]
[1773235827679,0.13482415,70327.0,70301.0,0.01124]
[1773235827880,0.13482415,70327.0,70293.0,0.07281061]
[1773235828078,0.13482415,70327.0,70294.0,0.00148]
[1773235828685,0.13334415,70325.0,70293.0,0.07125566]
[1773235828902,0.13334415,70323.0,70293.0,0.07118066]
[1773235829196,0.13334415,70323.0,70291.0,0.06940541]
[1773235829424,0.00148,70324.0,70285.0,0.07133857]
[1773235829425,0.13334415,70309.0,70285.0,0.00012501]
[1773235829545,0.13334415,70309.0,70278.0,0.0712707]
[1773235829546,0.13334415,70307.0,70278.0,0.0712707]
[1773235829757,0.13334415,70307.0,70277.0,0.07072289]
[1773235830141,0.13334415,70307.0,70272.0,0.00148]
[1773235830274,0.13334415,70299.0,70268.0,0.00148]
[1773235830475,0.13334415,70299.0,70268.0,0.001405]
[1773235830703,0.13334415,70299.0,70268.0,0.00133]
[1773235830900,0.00148,70298.0,70268.0,0.001255]
[1773235831082,0.00148,70297.0,70268.0,0.001105]
[1773235831281,0.00148,70297.0,70268.0,0.00103]
[1773235831592,0.07112881,70295.0,70269.0,0.07115513]
[1773235831797,0.07112881,70295.0,70264.0,0.12766074]
[1773235831798,0.12736487,70290.0,70248.0,0.07117576]
[1773235831996,0.13334415,70288.0,70257.0,0.07166332]
[1773235832176,0.13334415,70286.0,70257.0,0.07158832]
[1773235832378,0.00148,70285.0,70261.0,0.12766074]
[1773235832616,0.00148,70285.0,70257.0,0.07158832]
[1773235832925,0.28210078,70289.0,70262.0,0.00133]
[1773235833069,0.28210078,70289.0,70263.0,0.12758574]
[1773235833263,0.001,70299.0,70262.0,0.00133]
[1773235833264,0.09048276,70309.0,70271.0,0.12766074]
[1773235833617,0.16159793,70309.0,70283.0,0.12766074]
[1773235833823,0.16159793,70309.0,70284.0,0.00148]
[1773235834023,0.16159793,70309.0,70282.0,0.07114197]
[1773235834251,0.16159793,70309.0,70283.0,0.00148]
[1773235834530,0.00148,70308.0,70283.0,0.00148]
[1773235834674,0.16159793,70309.0,70283.0,0.00048]
[1773235834879,0.00148,70308.0,70283.0,0.00048]
[1773235835276,0.09048276,70309.0,70283.0,0.00048]
[1773235835587,0.16159775,70309.0,70285.0,0.07113893]
[1773235836228,0.16159775,70309.0,70286.0,0.00148]
[1773235836437,0.16259775,70309.0,70266.0,0.07115817]
[1773235836636,0.13334415,70299.0,70260.0,0.0002]
[1773235836837,0.12736487,70300.0,70261.0,0.00148]
[1773235836838,0.13334415,70297.0,70261.0,0.00148]
[1773235837040,0.13334415,70288.0,70260.0,0.07136394]
[1773235837241,0.00148,70287.0,70260.0,0.07136394]
[1773235837444,0.00148,70286.0,70260.0,0.07136394]
[1773235837643,0.00148,70285.0,70260.0,0.07136394]
[1773235837961,0.00148,70284.0,70260.0,0.19902468]
[1773235838167,0.00148,70284.0,70260.0,0.0002]
[1773235838342,0.00148,70284.0,70260.0,0.0713638]
[1773235838543,0.07113589,70288.0,70260.0,0.0713638]
[1773235838730,0.00148,70287.0,70260.0,0.0713638]
[1773235838928,0.07113589,70288.0,70261.0,0.12766074]
[1773235839128,0.00148,70287.0,70260.0,0.0002]
[1773235839353,0.00148,70287.0,70262.0,0.11942066]
[1773235839555,0.00248,70287.0,70262.0,0.11942066]
[1773235839737,0.07113792,70286.0,70263.0,0.0711612]
[1773235840479,0.07113792,70286.0,70260.0,0.0002]
[1773235840480,0.07113792,70286.0,70260.0,0.07136394]
[1773235840648,0.07113792,70286.0,70261.0,0.11942066]
[1773235840971,0.07213792,70286.0,70261.0,0.11942066]
[1773235841179,0.07113792,70286.0,70261.0,0.11942066]
[1773235841987,0.07113792,70286.0,70262.0,0.19058288]
[1773235842221,0.07113792,70286.0,70263.0,0.11942066]
[1773235842351,0.28232079,70289.0,70263.0,0.11942066]
[1773235842555,0.001,70286.0,70263.0,0.11942066]
[1773235842746,0.001,70286.0,70260.0,0.0002]
[1773235842941,0.12736487,70280.0,70248.0,0.00148]
[1773235843147,0.07113792,70288.0,70237.0,0.0002]
[1773235843148,0.12736487,70270.0,70237.0,0.0002]
[1773235843381,0.12736487,70260.0,70237.0,0.0002]
[1773235843618,0.2986601,70259.0,70230.0,0.00168]
[1773235843839,0.2986601,70259.0,70226.0,0.11942066]
[1773235843840,0.07116728,70257.0,70225.0,0.07177109]
[1773235844130,0.02689039,70256.0,70226.0,0.12366679]
[1773235844375,0.02837039,70256.0,70226.0,0.12366679]
[1773235844901,0.02837039,70256.0,70228.0,0.11942066]
[1773235845147,0.02837039,70256.0,70229.0,0.00148]
[1773235845486,0.02837039,70256.0,70230.0,0.11942066]
[1773235845640,0.02837039,70256.0,70230.0,0.12090066]
[1773235845963,0.07116931,70255.0,70232.0,0.11942066]
[1773235846176,0.07116931,70255.0,70232.0,0.00148]
[1773235846742,0.07116931,70255.0,70233.0,0.11942066]
[1773235847646,0.07116931,70255.0,70232.0,0.00148]
[1773235848026,0.09068804,70283.0,70234.0,0.11942066]
[1773235848251,0.01600424,70266.0,70241.0,0.11942066]
[1773235848427,0.2971801,70276.0,70251.0,0.11942066]
[1773235848630,0.07113893,70285.0,70253.0,0.11942066]
[1773235848848,0.00148,70284.0,70261.0,0.11942066]
[1773235849077,0.00148,70284.0,70262.0,0.00085047]
[1773235849277,0.11451055,70283.0,70249.0,0.00148]
[1773235849450,0.11451055,70283.0,70250.0,0.00148]
[1773235849794,0.11451055,70283.0,70246.0,0.11942066]
[1773235849795,0.1153894,70281.0,70251.0,0.00148]
[1773235850002,0.07262399,70280.0,70252.0,0.07117235]
[1773235850855,0.07114399,70280.0,70252.0,0.07117235]
[1773235851059,0.00148,70279.0,70252.0,0.07117235]
[1773235851479,0.00148,70279.0,70251.0,0.07265235]
[1773235851679,0.1153894,70278.0,70251.0,0.07117312]
[1773235851998,0.1153894,70278.0,70237.0,0.11516778]
[1773235851999,0.1153894,70276.0,70244.0,0.00148]
[1773235852300,0.1153894,70276.0,70252.0,0.001]
[1773235852505,0.1153894,70276.0,70244.0,0.00148]
[1773235852655,0.1153894,70276.0,70245.0,0.00148]
[1773235853002,0.00148,70275.0,70245.0,0.11664778]
[1773235853158,0.1153894,70276.0,70245.0,0.11664778]
[1773235853159,0.00148,70274.0,70245.0,0.11664778]
[1773235853371,0.1168694,70274.0,70246.0,0.00148]
[1773235853573,0.1168694,70274.0,70247.0,0.00148]
[1773235853773,0.1168694,70274.0,70230.0,0.12736487]
[1773235853774,0.1153894,70269.0,70221.0,0.11516778]
[1773235853979,0.1153894,70267.0,70233.0,0.07139116]
[1773235854220,0.1153894,70265.0,70233.0,0.07139138]
[1773235854566,0.1153894,70263.0,70233.0,0.07139138]
[1773235855188,0.29404085,70263.0,70233.0,0.07139125]
[1773235855400,0.00148,70262.0,70233.0,0.18655903]
[1773235855611,0.1168694,70262.0,70233.0,0.18655903]
[1773235856251,0.1168694,70262.0,70233.0,0.07139125]
[1773235856252,0.1153894,70260.0,70233.0,0.07139125]
[1773235856486,0.11520985,70260.0,70233.0,0.07139125]
[1773235856682,0.00148,70259.0,70233.0,0.07139125]
[1773235857308,0.07116262,70262.0,70234.0,0.11516778]
[1773235857512,0.00148,70264.0,70236.0,0.11516778]
[1773235857691,0.001,70260.0,70236.0,0.11516778]
[1773235858094,0.001,70260.0,70238.0,0.11516778]
[1773235858500,0.001,70260.0,70239.0,0.07118552]
[1773235858701,0.001,70260.0,70240.0,0.11516778]
[1773235858905,0.00148,70264.0,70240.0,0.11516778]
[1773235859317,0.07264026,70264.0,70240.0,0.11516778]
[1773235859995,0.36518909,70276.0,70250.0,0.12736487]
[1773235860230,0.36518909,70276.0,70251.0,0.11664778]
[1773235860401,0.36518909,70276.0,70252.0,0.00148]
[1773235860596,0.1153894,70275.0,70252.0,0.07117133]
[1773235860876,0.07113994,70284.0,70253.0,0.11516778]
[1773235861083,0.08287532,70285.0,70253.0,0.11516778]
[1773235861288,0.08287532,70285.0,70252.0,0.07117133]
[1773235861289,0.01173626,70285.0,70260.0,0.12736487]
[1773235861497,0.08236283,70301.0,70270.0,0.12736487]
[1773235861706,0.01192167,70312.0,70281.0,0.11516778]
[1773235861908,0.07134048,70304.0,70282.0,0.00148]
[1773235862082,0.00148,70303.0,70282.0,0.001405]
[1773235862313,0.00148,70303.0,70282.0,0.00133]
[1773235862533,0.07134048,70304.0,70282.0,0.001255]
[1773235862534,0.00022001,70304.0,70282.0,0.001255]
[1773235862740,1e-08,70304.0,70291.0,0.11516778]
[1773235862945,1e-08,70304.0,70292.0,0.00148]
[1773235863072,1e-08,70304.0,70293.0,0.001405]
[1773235863280,1e-08,70304.0,70293.0,0.00133]
[1773235863650,1e-08,70304.0,70294.0,0.11509278]
[1773235863822,1e-08,70304.0,70294.0,0.11501778]
[1773235863981,0.07112066,70304.0,70278.0,0.00148]
[1773235864187,0.07112066,70304.0,70258.0,0.15144]
[1773235864188,4.045e-05,70277.0,70252.0,0.07117235]
[1773235864501,0.00148,70287.0,70253.0,0.11516778]
[1773235864701,0.1153894,70285.0,70254.0,0.07257532]
[1773235864904,0.1153894,70285.0,70255.0,0.00148]
[1773235865075,0.00144,70284.0,70254.0,0.07102032]
[1773235865276,0.1168294,70284.0,70254.0,0.07094532]
[1773235865550,0.1168294,70284.0,70253.0,0.07265125]
[1773235865791,0.12736487,70280.0,70225.0,0.0007716]
[1773235866000,0.12736487,70280.0,70234.0,0.07119053]
[1773235866001,0.1153894,70269.0,70234.0,0.07119053]
[1773235866262,0.00144,70268.0,70235.0,0.00148]
[1773235866472,0.00144,70267.0,70236.0,0.11516778]
[1773235866688,0.34124192,70332.0,70279.0,0.12736487]
[1773235866899,0.00144,70334.0,70291.0,0.11516778]
[1773235867114,0.35320559,70319.0,70293.0,0.11516778]
[1773235867327,0.35320559,70319.0,70293.0,0.11502419]
[1773235867577,0.07109522,70329.0,70300.0,0.12736487]
[1773235867578,0.07131571,70328.0,70300.0,0.12736487]
[1773235867771,0.07131571,70328.0,70301.0,0.00148]
[1773235867998,0.07131571,70328.0,70293.0,0.11502419]
[1773235868223,0.07131571,70328.0,70287.0,0.00148]
[1773235868224,0.1153894,70326.0,70287.0,0.00148]
[1773235868410,0.00144,70325.0,70291.0,0.11516778]
[1773235868650,0.07131574,70328.0,70293.0,0.07113083]
[1773235868856,0.07131574,70328.0,70294.0,0.11516778]
[1773235869277,0.07131574,70328.0,70295.0,0.00148]
[1773235869488,0.07131574,70328.0,70294.0,0.11516778]
[1773235869672,0.07131574,70328.0,70296.0,0.00148]
[1773235869872,0.07131574,70328.0,70294.0,0.11516778]
[1773235870107,0.1153894,70327.0,70293.0,0.07113083]
[1773235870323,0.1153894,70327.0,70294.0,0.00148]
[1773235870530,0.00144,70326.0,70294.0,0.00148]
[1773235870756,0.07109847,70325.0,70295.0,0.07112881]
[1773235871186,0.1153894,70324.0,70296.0,0.00148]
[1773235871642,0.07109847,70325.0,70296.0,0.00148]
[1773235871848,0.1153894,70332.0,70296.0,0.00148]
[1773235871849,0.07108202,70342.0,70301.0,0.11516778]
[1773235872053,0.07108202,70342.0,70300.0,0.12736487]
[1773235872054,0.07187942,70336.0,70300.0,0.12736487]
[1773235872226,0.01174876,70347.0,70321.0,0.11516778]
[1773235872375,0.01174876,70347.0,70323.0,0.11516778]
[1773235872577,0.08230601,70358.0,70324.0,0.07109948]
[1773235872978,0.1153894,70357.0,70325.0,0.00148]
[1773235873564,0.07105545,70368.0,70331.0,0.11516778]
[1773235874184,0.07105545,70368.0,70332.0,0.00148]
[1773235874185,0.1153894,70367.0,70332.0,0.00148]
[1773235874349,0.07105545,70368.0,70333.0,0.11516778]
[1773235874758,0.07105545,70368.0,70335.0,0.11516778]
[1773235875202,0.07104631,70377.0,70335.0,0.11516778]
[1773235875420,1e-08,70382.0,70344.0,0.917583]
[1773235875601,1e-08,70382.0,70348.0,0.11516778]
[1773235875806,0.07104156,70382.0,70350.0,0.11516778]
[1773235876008,0.07104156,70382.0,70352.0,0.11471895]
[1773235876182,0.07104156,70382.0,70354.0,0.11516778]
[1773235876715,1e-08,70382.0,70356.0,0.07106714]
[1773235877073,1e-08,70382.0,70345.0,0.07107788]
[1773235877273,0.29404085,70379.0,70346.0,0.00148]
[1773235877492,0.1153894,70378.0,70330.0,0.07109284]
[1773235877719,0.1153894,70376.0,70328.0,0.07109505]
[1773235877948,0.0014,70375.0,70331.0,0.00144]
[1773235878147,0.00022001,70368.0,70331.0,0.00144]
[1773235878393,0.00022001,70368.0,70332.0,0.11516778]
[1773235878602,0.0014,70367.0,70332.0,0.11516778]
[1773235878825,0.07105704,70366.0,70325.0,0.07109787]
[1773235879038,0.1153894,70365.0,70312.0,0.07111161]
[1773235879261,0.1153894,70365.0,70313.0,0.00148]
[1773235879747,0.00022001,70368.0,70314.0,0.10620506]
[1773235879953,0.07127579,70368.0,70331.0,0.10620506]
[1773235880152,0.001,70365.0,70333.0,0.10620506]
[1773235880697,0.07105502,70371.0,70333.0,0.10620506]
[1773235880698,0.00122001,70376.0,70333.0,0.10620506]
[1773235880868,0.07104338,70380.0,70351.0,0.10620506]
[1773235881068,0.07104338,70380.0,70352.0,0.00148]
[1773235881234,0.07104159,70382.0,70353.0,0.10620506]
[1773235881650,0.07104159,70382.0,70354.0,0.00148]
[1773235881855,0.07104159,70382.0,70356.0,0.10620506]
[1773235882070,0.0014,70381.0,70357.0,0.00148]
[1773235882394,0.0014,70381.0,70358.0,0.00148]
[1773235882546,0.0014,70381.0,70359.0,0.00144]
[1773235882875,0.0710429,70380.0,70359.0,0.00144]
[1773235883084,0.0710429,70380.0,70337.0,0.07108634]
[1773235883085,0.29532684,70379.0,70337.0,0.07108634]
[1773235883293,0.29532684,70379.0,70338.0,0.0014]
[1773235883489,0.0724429,70381.0,70338.0,0.0014]
[1773235883490,1e-08,70382.0,70339.0,0.10620506]
[1773235883698,0.0710419,70381.0,70339.0,0.10620506]
[1773235883876,0.07104191,70382.0,70341.0,0.10620506]
[1773235884069,0.001,70381.0,70344.0,0.10620506]
[1773235884270,1e-08,70382.0,70341.0,0.03234816]
[1773235884495,1e-08,70382.0,70344.0,0.10620506]
[1773235884496,0.0210419,70381.0,70344.0,0.10620506]
[1773235884857,0.0210419,70381.0,70345.0,0.07107825]
[1773235885058,0.0210419,70381.0,70346.0,0.10620506]
[1773235885316,1e-08,70382.0,70346.0,0.10620506]
[1773235885547,0.08102341,70400.0,70361.0,0.10620506]
[1773235885672,0.08102341,70400.0,70363.0,0.10620506]
[1773235886079,0.00022001,70390.0,70365.0,0.10620506]
[1773235886283,0.00022001,70390.0,70367.0,0.10620506]
[1773235886513,0.00022001,70390.0,70368.0,0.00144]
[1773235886716,0.00022001,70390.0,70354.0,0.1706]
[1773235886717,1e-08,70400.0,70371.0,0.10620506]
[1773235886922,1e-08,70400.0,70374.0,0.07104896]
[1773235887116,1e-08,70400.0,70374.0,0.17725402]
[1773235887476,1e-08,70400.0,70375.0,0.10620506]
[1773235887764,1e-08,70400.0,70374.0,0.07104896]
[1773235887944,1e-08,70400.0,70376.0,0.00144]
[1773235888264,1e-08,70400.0,70371.0,0.07205183]
[1773235888640,1e-08,70400.0,70372.0,0.00144]
[1773235888974,0.10743331,70399.0,70346.0,0.1772823]
[1773235889187,0.10743331,70399.0,70325.0,0.151]
[1773235889384,0.10743331,70395.0,70330.0,0.10620506]
[1773235889595,0.10172031,70380.0,70326.0,0.07109746]
[1773235889788,0.10743331,70377.0,70311.0,0.07111262]
[1773235889989,0.10743331,70373.0,70312.0,0.00144]
[1773235890209,0.10743331,70375.0,70313.0,0.10620506]
[1773235890694,0.29532684,70379.0,70321.0,0.10620506]
[1773235890838,0.10743331,70373.0,70323.0,0.10620506]